bitfinex/quotes_ETHUSD_20260107
["timestamp","ask_amount","ask_price","bid_price","bid_amount"]
[1767809730922,1.18251752,3149.3,3148.7,0.002]
[1767809731759,3.17454652,3150.1,3148.7,0.002]
[1767809731760,0.96615371,3150.3,3148.7,0.96607859]
[1767809731930,0.96615371,3150.1,3148.7,0.96607859]
[1767809733322,0.96615371,3150.1,3148.7,0.002]
[1767809733723,0.96615371,3149.9,3148.7,0.002]
[1767809733951,0.96615371,3149.7,3148.7,0.002]
[1767809734149,0.73153601,3149.8,3148.7,0.002]
[1767809734150,0.96615371,3149.5,3148.7,0.002]
[1767809735924,0.96615371,3149.3,3148.7,0.002]
[1767809738133,0.96615371,3149.1,3148.7,0.002]
[1767809738339,1.79915371,3149.0,3148.7,0.002]
[1767809739850,0.96615371,3148.9,3148.0,4.10140287]
[1767809740044,0.96615371,3148.9,3148.1,0.92483671]
[1767809740728,0.96615371,3148.7,3147.9,0.002]
[1767809740930,0.96615371,3148.7,3148.0,3.17655638]
[1767809741151,0.96615371,3148.7,3148.0,3.17656595]
[1767809741567,0.96615371,3148.7,3148.1,3.1765124]
[1767809742140,0.96615371,3148.7,3148.1,3.17651671]
[1767809742538,0.96615371,3148.7,3148.0,3.17660437]
[1767809742738,0.96615371,3148.7,3148.1,3.17651767]
[1767809743646,0.96615371,3148.7,3147.9,0.002]
[1767809744963,0.96615371,3149.1,3147.9,0.92683671]
[1767809745168,0.833,3149.1,3147.9,0.92683671]
[1767809745382,0.834,3149.2,3147.9,0.92683671]
[1767809745737,4.00942897,3149.2,3148.1,0.92483671]
[1767809745937,8.15101165,3149.2,3148.3,0.92483671]
[1767809746163,0.96615371,3149.1,3148.3,0.92483671]
[1767809746539,4.00942897,3149.2,3148.3,0.92483671]
[1767809746941,0.834,3149.2,3148.3,0.92483671]
[1767809747160,0.001,3149.2,3148.3,0.92483671]
[1767809747867,0.001,3149.2,3148.5,0.92483671]
[1767809748083,0.001,3149.2,3148.7,0.92483671]
[1767809749683,0.001,3149.2,3148.9,0.92483671]
[1767809750035,0.83000304,3149.7,3149.1,0.92483671]
[1767809750371,0.96615371,3150.0,3149.1,0.92483671]
[1767809750670,0.96615371,3149.9,3148.8,3.175813]
[1767809751261,0.96615371,3149.9,3148.8,4.10064971]
[1767809751744,0.001,3149.2,3148.8,4.10064971]
[1767809755163,0.001,3149.2,3148.8,7.27646271]
[1767809755364,0.001,3149.2,3148.8,4.10064971]
[1767809755758,0.001,3149.2,3148.7,3.1759116]
[1767809756072,0.001,3149.2,3148.8,3.17581232]
[1767809756474,0.001,3149.2,3148.6,4.10075211]
[1767809756671,0.001,3149.2,3148.6,0.92483671]
[1767809756981,0.96715371,3149.2,3147.9,0.002]
[1767809757182,0.96615371,3149.0,3147.9,0.002]
[1767809757482,0.96615371,3149.0,3148.0,0.61571456]
[1767809759381,0.96615371,3149.0,3148.2,0.61571456]
[1767809759685,0.96715371,3149.2,3148.2,0.61571456]
[1767809760053,0.001,3149.2,3148.4,0.61571456]
[1767809761572,0.001,3149.2,3148.6,0.61571456]
[1767809763297,0.001,3149.2,3148.7,0.002]
[1767809763470,0.001,3149.2,3148.8,0.833]
[1767809764890,0.96599983,3150.3,3149.0,0.61571456]
[1767809765295,0.96599983,3150.6,3149.0,0.61571456]
[1767809765794,0.96599983,3150.4,3149.2,0.61571456]
[1767809766097,3.17409934,3150.5,3148.7,0.002]
[1767809766098,0.96599983,3150.2,3148.7,0.002]
[1767809766385,0.96599983,3150.2,3149.0,3.17556723]
[1767809766969,0.96599983,3150.2,3148.9,3.17563911]
[1767809767164,0.96599983,3150.2,3149.0,3.17557815]
[1767809767694,6.34900478,3150.1,3148.7,6.35382772]
[1767809767862,0.96599983,3149.9,3148.7,6.35382772]
[1767809768607,0.96599983,3149.9,3148.8,0.833]
[1767809769681,0.96599983,3149.7,3148.9,3.17571215]
[1767809770923,0.96599983,3149.7,3148.9,6.3514243]
[1767809772783,0.96599983,3150.1,3149.0,0.61571456]
[1767809773097,0.96599983,3150.1,3148.9,9.52713645]
[1767809773098,0.96599983,3150.1,3149.1,0.61571456]
[1767809773305,0.96599983,3150.6,3149.1,0.61571456]
[1767809773984,0.96599983,3150.6,3149.3,0.61571456]
[1767809774190,0.96599983,3150.6,3149.5,0.61571456]
[1767809776114,0.001,3150.0,3149.6,6.96572726]
[1767809776416,0.001,3150.0,3149.3,0.61571456]
[1767809776619,0.001,3150.0,3149.5,3.17506302]
[1767809776796,0.96699983,3150.0,3149.3,3.17521555]
[1767809777112,0.96699983,3150.0,3149.2,0.002]
[1767809777320,0.96699983,3150.0,3149.3,0.833]
[1767809777700,0.96699983,3150.0,3149.3,4.00828542]
[1767809777917,0.96699983,3150.0,3149.4,0.833]
[1767809778615,0.96699983,3150.0,3149.4,4.00820289]
[1767809778791,0.001,3150.0,3149.4,4.00820289]
[1767809780018,0.96699983,3150.0,3149.4,4.00820289]
[1767809781226,0.96699983,3150.0,3149.5,0.833]
[1767809782431,0.001,3150.0,3149.5,0.833]
[1767809782616,0.96699983,3150.0,3149.6,3.17494529]
[1767809782921,0.96699983,3150.0,3149.7,0.833]
[1767809783332,0.001,3150.0,3149.7,0.833]
[1767809784012,0.001,3150.0,3149.7,4.00789059]
[1767809785122,0.001,3150.0,3149.7,0.833]
[1767809785909,0.001,3150.0,3149.7,3.17489757]
[1767809786109,0.001,3150.0,3149.8,0.833]
[1767809786927,0.96699983,3150.0,3149.3,3.17523667]
[1767809787114,0.96699983,3150.0,3149.4,4.00820278]
[1767809787368,0.96699983,3150.0,3149.5,3.1750963]
[1767809787521,0.96699983,3150.0,3149.6,0.833]
[1767809788129,0.001,3149.7,3149.6,0.833]
[1767809789736,0.001,3149.7,3149.6,4.00800635]
[1767809790829,0.96699983,3150.0,3149.6,0.833]
[1767809791207,0.001,3150.0,3149.6,4.00800065]
[1767809791408,0.001,3150.0,3149.7,0.61571456]
[1767809791621,0.96599983,3150.5,3149.7,0.61571456]
[1767809791805,0.96599983,3150.5,3149.6,7.183007]
[1767809792429,0.96599983,3150.5,3149.6,7.79872156]
[1767809792630,0.96599983,3150.5,3149.7,0.61571456]
[1767809794208,0.96599983,3150.5,3149.8,6.34960948]
[1767809794410,0.93408982,3151.5,3149.9,0.61571456]
[1767809794638,0.93408982,3151.4,3149.8,3.17480474]
[1767809794942,0.93408982,3151.4,3150.0,0.833]
[1767809795236,0.93408982,3151.4,3149.9,0.61571456]
[1767809795407,0.93408982,3151.4,3149.8,6.34960948]
[1767809795408,0.93408982,3151.2,3150.1,0.833]
[1767809796236,0.93408982,3151.2,3150.2,0.61571456]
[1767809797318,0.93408982,3151.0,3150.2,3.17438511]
[1767809798444,0.93408982,3151.0,3150.3,0.833]
[1767809798743,0.93408982,3151.0,3150.1,3.17442792]
[1767809798951,0.93408982,3151.0,3150.4,0.833]
[1767809799542,0.93408982,3151.0,3150.4,4.00718198]
[1767809800143,0.93408982,3151.0,3150.4,0.833]
[1767809800851,0.93408982,3150.9,3150.4,0.833]
[1767809803244,0.93408982,3150.9,3150.4,4.00717908]
[1767809803453,0.93408982,3150.9,3150.4,0.833]
[1767809804472,0.93408982,3151.0,3150.4,0.833]
[1767809804813,0.93408982,3151.0,3150.4,7.7970784]
[1767809805150,0.93508982,3151.1,3150.4,4.6228783]
[1767809805450,0.93508982,3151.1,3150.4,4.00716374]
[1767809806122,0.93408982,3151.0,3150.5,0.833]
[1767809807418,0.001,3151.1,3150.5,0.833]
[1767809807742,0.93508982,3151.1,3150.5,0.833]
[1767809807941,0.93508982,3151.1,3150.5,1.44871456]
[1767809808160,0.93508982,3151.1,3150.5,4.62275806]
[1767809808515,0.93508982,3151.1,3150.5,7.7968574]
[1767809808834,0.001,3151.1,3150.6,0.61571456]
[1767809810147,0.001,3151.1,3150.8,0.61571456]
[1767809811336,0.001,3151.1,3150.7,3.17389786]
[1767809811538,0.001,3151.1,3150.7,3.78961242]
[1767809811928,0.001,3151.1,3150.8,0.61571456]
[1767809812154,0.001,3151.1,3150.8,3.7894253]
[1767809812845,0.001,3151.1,3150.8,0.61571456]
[1767809813050,0.001,3151.1,3150.8,3.17378992]
[1767809813350,0.93508982,3151.1,3150.9,0.833]
[1767809813554,0.93508982,3151.1,3150.7,3.17388868]
[1767809813721,0.93508982,3151.1,3150.8,0.833]
[1767809816245,0.93508982,3151.1,3150.9,0.833]
[1767809820458,0.001,3151.1,3150.9,0.833]
[1767809825661,0.001,3151.1,3151.0,0.61571456]
[1767809827361,0.001,3151.1,3150.9,4.00666285]
[1767809828344,0.001,3151.1,3151.0,3.17359568]
[1767809828566,0.001,3151.1,3151.0,4.00659568]
[1767809829766,0.001,3151.1,3151.0,0.833]
[1767809831295,0.95747407,3151.1,3150.8,3.17373095]
[1767809831453,0.95747407,3151.1,3150.9,0.833]
[1767809833478,0.95747407,3151.1,3150.9,0.7605016]
[1767809833848,0.95747407,3151.1,3150.4,3.78987867]
[1767809834054,0.95747407,3151.1,3150.7,0.833]
[1767809834479,0.001,3150.8,3150.7,0.833]
[1767809835181,0.001,3150.8,3150.5,3.17409934]
[1767809835386,0.001,3150.8,3150.6,0.833]
[1767809835756,0.95747407,3150.8,3150.5,0.833]
[1767809836094,0.95747407,3150.8,3150.0,0.61571456]
[1767809836095,0.95647407,3150.7,3150.0,3.17454314]
[1767809836275,0.95647407,3150.7,3149.6,3.79064244]
[1767809836480,0.95647407,3150.7,3149.6,3.17498367]
[1767809837059,0.95647407,3150.7,3149.8,3.17474327]
[1767809837293,0.95647407,3150.7,3149.7,3.17485537]
[1767809837457,0.95647407,3150.6,3149.2,0.002]
[1767809837655,0.95647407,3150.6,3149.3,3.17529639]
[1767809837871,0.95647407,3150.6,3149.2,0.002]
[1767809838082,0.95647407,3150.4,3149.2,0.002]
[1767809838384,6.34819868,3150.5,3149.2,0.002]
[1767809838385,0.95647407,3150.2,3149.2,0.002]
[1767809838578,0.95647407,3150.0,3149.2,0.002]
[1767809839462,0.95447408,3150.0,3149.2,0.002]
[1767809840062,3.17470395,3149.9,3149.2,0.002]
[1767809840263,0.95447408,3149.8,3149.2,0.002]
[1767809846486,0.95447408,3149.8,3149.5,0.002]
[1767809846795,0.95447408,3149.8,3149.2,0.002]
[1767809849213,0.73046728,3150.3,3149.2,0.69773806]
[1767809849499,0.95647407,3150.1,3149.2,0.69773806]
[1767809850211,0.95647407,3150.1,3149.2,3.17739603]
[1767809850212,0.95647407,3149.9,3149.2,3.17739603]
[1767809854688,0.90404602,3149.8,3149.2,3.17739603]
[1767809855610,0.90404602,3149.8,3149.2,0.002]
[1767809857017,0.90404602,3150.3,3149.3,0.69573806]
[1767809857721,0.90404602,3150.2,3149.5,0.69573806]
[1767809858322,0.90404602,3150.2,3149.5,0.69773806]
[1767809858517,0.90404602,3150.3,3149.5,0.69773806]
[1767809859502,0.90404602,3150.6,3149.7,0.69573806]
[1767809862342,0.90404602,3150.6,3149.8,7.04534754]
[1767809862526,0.90504602,3150.8,3149.9,0.69573806]
[1767809862707,0.90504602,3150.8,3150.0,0.69573806]
[1767809864143,0.001,3150.8,3150.0,0.69573806]
[1767809864344,0.001,3150.8,3150.2,0.69573806]
[1767809864909,0.90504602,3150.8,3150.2,0.69573806]
[1767809865139,0.001,3150.8,3150.2,0.69573806]
[1767809865425,0.001,3150.8,3150.3,0.69573806]
[1767809866537,0.90504602,3150.8,3150.3,3.17424071]
[1767809867634,0.90504602,3150.8,3150.1,0.69573806]
[1767809867847,0.90504602,3150.8,3150.3,3.17427867]
[1767809868517,0.90504602,3150.8,3150.2,3.17440162]
[1767809868837,0.90404602,3150.7,3149.6,0.69573806]
[1767809869008,0.90404602,3150.7,3149.6,1.52873806]
[1767809869209,0.90404602,3150.7,3150.1,3.17448696]
[1767809869846,0.001,3150.5,3150.1,3.17448696]
[1767809870041,0.001,3150.5,3150.1,7.04472741]
[1767809870246,0.001,3150.8,3150.2,0.69573806]
[1767809870536,0.001,3150.8,3150.4,3.1742001]
[1767809870714,0.001,3150.8,3150.4,3.86993816]
[1767809872311,0.001,3150.8,3150.4,3.1742001]
[1767809872518,0.001,3150.8,3150.3,3.17427272]
[1767809873643,0.90504602,3150.8,3150.3,3.17427272]
[1767809875917,0.90504602,3150.8,3150.2,3.17437849]
[1767809878249,0.90504602,3150.8,3150.0,3.17457661]
[1767809878449,0.90404602,3150.7,3149.9,3.17468577]
[1767809879740,0.90404602,3150.7,3149.9,7.04512778]
[1767809880926,0.90404602,3150.6,3149.9,3.87042383]
[1767809881126,0.90404602,3150.6,3149.8,3.174759]
[1767809881533,0.90404602,3150.6,3150.4,0.002]
[1767809881730,0.92689439,3150.4,3149.9,3.174681]
[1767809882033,0.92689439,3150.4,3150.0,0.002]
[1767809885008,0.92689439,3150.3,3150.0,0.002]
[1767809885158,0.92689439,3150.3,3149.5,3.1770944]
[1767809885354,0.92689439,3150.3,3149.5,0.002]
[1767809885673,0.92789439,3150.5,3149.5,0.72940036]
[1767809885853,0.001,3150.5,3149.5,0.72940036]
[1767809886173,0.001,3150.5,3149.7,0.69573806]
[1767809888074,0.001,3150.5,3149.9,0.69573806]
[1767809888271,0.92789439,3150.5,3149.9,0.69573806]
[1767809888573,0.92789439,3150.5,3149.8,3.17480474]
[1767809889365,0.92789439,3150.5,3149.5,0.835]
[1767809889366,0.92789439,3150.5,3149.6,3.17491427]
[1767809889855,0.92789439,3150.5,3149.7,3.17489755]
[1767809890054,0.92689439,3150.4,3149.7,3.17489755]
[1767809890659,0.9248944,3150.4,3149.5,7.04795236]
[1767809891059,0.92689439,3150.3,3149.5,7.04795236]
[1767809892869,0.9248944,3150.3,3149.5,7.04795236]
[1767809893788,0.9248944,3150.3,3149.8,0.002]
[1767809894180,0.001,3150.0,3149.8,0.002]
[1767809897264,0.001,3150.5,3149.6,0.9611319]
[1767809897564,0.92689439,3150.4,3149.6,0.9611319]
[1767809897896,0.001,3150.5,3149.7,0.9611319]
[1767809898264,0.92789439,3150.5,3149.7,0.9611319]
[1767809899094,0.92789439,3150.5,3149.8,4.13593664]
[1767809899304,0.92789439,3150.5,3149.8,7.31074138]
[1767809899466,0.92789439,3150.5,3149.8,4.13593664]
[1767809899666,0.92789439,3150.5,3149.8,7.31074138]
[1767809900800,0.9258944,3150.5,3149.8,7.31074138]
[1767809902403,0.92689439,3150.7,3149.9,0.9611319]
[1767809903903,0.92689439,3150.6,3149.9,4.13577852]
[1767809904288,0.92689439,3150.6,3149.9,3.17464662]
[1767809904603,0.92689439,3150.6,3149.7,4.1360047]
[1767809904798,0.92689439,3150.6,3149.8,3.17471253]
[1767809905016,0.92689439,3150.6,3149.9,3.17468024]
[1767809905609,0.9248944,3150.6,3149.9,4.13581214]
[1767809906007,0.9248944,3150.6,3150.1,0.002]
[1767809906573,0.92789439,3150.8,3150.1,0.9631319]
[1767809906780,0.001,3150.8,3150.1,0.9631319]
[1767809908210,0.001,3150.8,3150.3,0.9611319]
[1767809910905,0.001,3150.8,3150.5,0.9611319]
[1767809911695,0.001,3150.8,3150.4,7.3095321]
[1767809912305,0.001,3150.8,3150.5,0.93885697]
[1767809913119,0.001,3150.8,3150.6,3.1739986]
[1767809917116,0.001,3150.8,3150.6,6.3479972]
[1767809917686,0.001,3150.8,3150.6,3.1739986]
[1767809918610,0.001,3150.8,3150.5,3.17404731]
[1767809921152,0.001,3150.8,3150.4,7.28725527]
[1767809922418,0.001,3150.8,3149.8,0.94085697]
[1767809922419,0.9887959,3150.8,3149.8,0.94085697]
[1767809922614,0.9887959,3150.8,3149.8,3.17674925]
[1767809922831,0.9887959,3150.8,3149.8,0.002]
[1767809923149,0.9887959,3150.8,3149.8,3.17679312]
[1767809923449,0.9877959,3150.6,3149.8,0.002]
[1767809923609,0.9877959,3150.5,3149.8,0.002]
[1767809924015,0.9877959,3150.4,3149.5,0.002]
[1767809924212,0.9877959,3150.2,3148.9,0.002]
[1767809924433,0.9877959,3150.0,3148.9,0.002]
[1767809924621,0.9877959,3149.8,3149.0,3.17555736]
[1767809924820,0.9877959,3149.8,3149.1,3.17550307]
[1767809925129,1.16987549,3149.8,3149.0,3.17557729]
[1767809925532,1.16987549,3149.8,3148.9,3.1777004]
[1767809925925,1.16987549,3149.8,3148.9,6.35341255]
[1767809926335,0.9877959,3149.7,3148.9,3.1777004]
[1767809926541,0.9877959,3149.6,3148.9,3.1777004]
[1767809927060,0.9877959,3149.6,3148.9,7.29226952]
[1767809927262,0.9877959,3149.9,3149.0,0.93885697]
[1767809927636,0.9877959,3149.8,3149.1,3.17551046]
[1767809927841,0.9877959,3149.8,3149.1,4.11436743]
[1767809928153,0.9877959,3149.8,3149.1,7.28987789]
[1767809929253,0.9877959,3149.8,3149.1,4.11436743]
[1767809929931,0.9877959,3149.8,3149.1,3.17551046]
[1767809930331,0.9877959,3149.8,3149.1,6.35102092]
[1767809930558,0.9877959,3149.8,3149.1,7.28987789]
[1767809930857,0.9877959,3149.8,3149.2,0.002]
[1767809931247,0.9877959,3149.9,3149.2,0.94085697]
[1767809931455,0.9877959,3149.9,3149.2,0.002]
[1767809932654,0.98579591,3149.9,3149.2,0.002]
[1767809933263,0.98579591,3149.9,3149.2,0.94085697]
[1767809934128,0.98579591,3149.9,3149.3,3.17530879]
[1767809937056,0.98579591,3149.9,3149.2,4.11622554]
[1767809937361,0.9877959,3149.8,3149.2,0.94085697]
[1767809937667,0.9877959,3149.8,3149.2,0.002]
[1767809937869,0.9877959,3149.8,3149.2,3.17740383]
[1767809938238,0.9877959,3149.8,3149.2,0.002]
[1767809938663,0.833,3150.0,3149.2,0.94085697]
[1767809938846,1.8207959,3150.0,3149.2,0.94085697]
[1767809939750,0.9877959,3149.9,3149.2,0.94085697]
[1767809939964,0.9877959,3149.9,3149.2,0.002]
[1767809940668,0.9877959,3149.8,3149.2,0.002]
[1767809942557,0.9877959,3149.8,3149.4,0.002]
[1767809942768,0.95486647,3149.5,3149.0,0.002]
[1767809942961,0.95486647,3149.5,3148.7,3.17787988]
[1767809943269,0.95486647,3149.5,3149.0,3.17557559]
[1767809944175,0.95486647,3150.6,3149.1,0.91120282]
[1767809944468,0.95486647,3150.3,3149.2,0.91120282]
[1767809944768,0.95486647,3150.1,3149.3,0.91120282]
[1767809944962,0.95486647,3150.0,3149.1,3.17542861]
[1767809945279,0.95486647,3150.0,3149.2,3.17540242]
[1767809945654,0.95486647,3150.0,3149.1,4.08667677]
[1767809946370,0.95486647,3149.7,3148.8,0.002]
[1767809946573,0.95486647,3149.4,3148.8,3.17780199]
[1767809946971,0.95486647,3149.4,3148.8,0.002]
[1767809948972,0.95486647,3149.4,3148.8,0.91320282]
[1767809949343,0.95486647,3149.6,3148.8,0.91320282]
[1767809950547,0.95486647,3149.8,3148.8,0.91320282]
[1767809950949,0.95486647,3149.8,3149.0,0.91120282]
[1767809951248,0.95486647,3149.8,3149.1,0.91120282]
[1767809952873,0.95486647,3149.7,3149.1,0.91120282]
[1767809953060,0.95486647,3149.6,3148.9,0.91120282]
[1767809953250,0.95286648,3149.6,3148.9,0.91120282]
[1767809953575,0.95286648,3149.6,3148.8,0.91320282]
[1767809953781,0.95286648,3149.6,3148.8,0.002]
[1767809953946,0.95486647,3149.9,3148.8,0.91320282]
[1767809954148,3.17465375,3150.0,3148.8,0.91320282]
[1767809954362,0.95486647,3149.9,3148.8,0.91320282]
[1767809954976,3.17480474,3149.8,3148.8,0.91320282]
[1767809955175,0.95486647,3149.8,3149.0,0.91120282]
[1767809955678,0.95486647,3149.6,3148.9,3.17571215]
[1767809957397,0.95486647,3149.6,3148.9,7.26262712]
[1767809957568,0.001,3149.7,3149.0,0.91120282]
[1767809959090,0.001,3149.7,3149.1,6.35102092]
[1767809959287,0.001,3149.7,3149.2,0.91120282]
[1767809961482,0.001,3149.7,3148.8,3.17778997]
[1767809961483,0.001,3149.7,3149.4,0.91120282]
[1767809962988,0.001,3149.7,3149.3,4.08651161]
[1767809964793,0.95586647,3149.7,3149.1,3.17545549]
[1767809964965,0.95586647,3149.7,3149.2,3.17540116]
[1767809965294,0.95386648,3149.7,3149.2,3.17540116]
[1767809965594,0.95386648,3149.7,3149.1,7.26222374]
[1767809965786,0.95486647,3149.9,3149.3,0.31754012]
[1767809965986,0.95486647,3149.9,3149.3,1.22874294]
[1767809966662,0.95486647,3150.1,3149.4,0.91120282]
[1767809967261,4.12903068,3150.5,3149.4,0.91120282]
[1767809967488,0.95486647,3150.4,3149.6,0.91120282]
[1767809967800,0.95486647,3150.4,3149.7,4.08610836]
[1767809968011,0.95486647,3150.4,3149.8,1.24888381]
[1767809968303,0.834,3151.1,3149.9,0.91120282]
[1767809968815,0.001,3151.1,3149.9,0.91120282]
[1767809969890,0.001,3151.1,3150.1,0.91120282]
[1767809971896,0.001,3151.1,3150.3,0.91707826]
[1767809972096,0.001,3151.1,3150.5,0.91707826]
[1767809973978,0.001,3151.1,3150.7,0.91707826]
[1767809975996,0.001,3151.1,3150.8,7.26467252]
[1767809978817,0.90021782,3151.9,3150.8,6.34759426]
[1767809978999,0.90021782,3151.9,3150.9,0.33768099]
[1767809981406,0.90021782,3151.9,3151.0,6.34719136]
[1767809982509,0.90021782,3152.6,3151.1,0.91707826]
[1767809982707,0.90021782,3152.3,3151.1,0.91707826]
[1767809983010,0.90021782,3152.3,3151.3,0.91707826]
[1767809983590,0.90021782,3152.3,3151.4,6.34638572]
[1767809983792,0.90021782,3152.2,3151.2,0.31754012]
[1767809984121,0.90021782,3152.2,3151.3,6.34658712]
[1767809984803,0.90021782,3152.2,3151.3,3.17329356]
[1767809985613,0.90021782,3152.1,3151.2,6.34678852]
[1767809985905,0.90021782,3152.1,3151.2,7.26386678]
[1767809986404,0.90021782,3152.1,3151.2,4.09047252]
[1767809986782,0.90021782,3152.1,3151.2,3.17339426]
[1767809987308,0.90021782,3151.9,3150.8,0.91707826]
[1767809987617,0.90021782,3151.9,3150.8,3.17373719]
[1767809987906,0.90021782,3151.7,3150.7,3.17389259]
[1767809988105,0.90021782,3151.7,3150.8,0.31738926]
[1767809989711,0.90021782,3151.5,3150.8,3.49112305]
[1767809989914,0.90021782,3151.5,3150.8,0.31738926]
[1767809990296,0.90021782,3151.5,3150.6,3.17396989]
[1767809990896,0.90021782,3151.5,3150.6,4.09104815]
[1767809991207,0.90021782,3151.5,3150.6,4.091059]
[1767809991388,0.90021782,3151.5,3150.6,3.17395285]
[1767809991594,0.90021782,3151.5,3150.4,1.74907826]
[1767809991794,0.90021782,3151.3,3150.6,3.1739986]
[1767809994416,0.90021782,3151.3,3150.6,4.09107686]
[1767809994818,0.90021782,3151.5,3150.7,0.91707826]
[1767809997433,0.90021782,3151.5,3150.8,4.09087539]
[1767809998622,3.17301563,3151.6,3150.9,0.91707826]
[1767809998923,4.07323345,3151.6,3150.9,0.91707826]
[1767809999303,0.90021782,3151.5,3150.9,0.91707826]
[1767809999502,0.90021782,3151.5,3150.8,3.17379713]
[1767809999832,0.90021782,3151.4,3150.6,4.09102818]
[1767810000133,0.90021782,3151.4,3150.7,3.17389621]
[1767810000324,0.90021782,3151.7,3150.9,0.91707826]
[1767810000493,12.57582105,3151.8,3151.0,0.91707826]
[1767810000693,0.90021782,3151.7,3151.0,0.91707826]
[1767810001594,0.95401394,3151.6,3151.0,0.91707826]
[1767810001921,3.17290932,3151.7,3151.0,0.91707826]
[1767810001922,0.001,3151.8,3151.1,0.99238742]
[1767810003324,0.001,3151.8,3151.1,0.99438742]
[1767810003520,0.001,3151.8,3151.4,0.99238742]
[1767810003924,0.001,3151.8,3151.2,7.33917594]
[1767810004227,0.001,3151.8,3151.0,3.1735606]
[1767810004228,0.96254322,3151.8,3151.0,3.1735606]
[1767810004594,0.96254322,3151.8,3150.8,4.16813172]
[1767810004829,1.14209754,3151.8,3150.8,0.99438742]
[1767810004994,1.14209754,3151.8,3151.1,3.17347722]
[1767810005195,0.001,3151.8,3151.2,0.99238742]
[1767810005743,0.96154322,3152.3,3151.5,0.99238742]
[1767810005903,0.96154322,3152.5,3151.5,0.99238742]
[1767810006090,0.833,3152.6,3151.5,0.99238742]
[1767810006290,4.96652861,3152.6,3151.5,0.99238742]
[1767810007331,1.79454322,3152.6,3151.5,0.99238742]
[1767810007721,1.79454322,3152.6,3151.7,0.99238742]
[1767810007722,4.96652918,3152.6,3151.7,0.99238742]
[1767810007922,4.96652918,3152.6,3151.8,0.99238742]
[1767810008125,0.96154322,3152.5,3151.5,3.17306308]
[1767810008343,0.96154322,3152.5,3150.9,0.99238742]
[1767810008626,0.96154322,3152.1,3150.9,3.17360648]
[1767810008827,0.96154322,3151.9,3150.8,3.17578176]
[1767810009028,0.96154322,3151.9,3150.9,3.17368769]
[1767810009328,0.96154322,3151.9,3151.1,3.17343167]
[1767810009528,0.96154322,3151.9,3150.9,3.17367369]
[1767810009904,0.96154322,3151.9,3150.8,7.34198168]
[1767810009905,0.96154322,3151.8,3150.8,7.34198168]
[1767810010334,0.96154322,3151.8,3150.8,0.99438742]
[1767810011531,0.96154322,3151.8,3150.8,0.002]
[1767810011908,0.96154322,3151.6,3150.8,0.002]
[1767810013006,0.96154322,3151.6,3150.4,0.99238742]
[1767810013332,0.96154322,3151.6,3150.6,3.17397214]
[1767810013521,0.96154322,3151.4,3150.6,3.17397214]
[1767810014228,0.96154322,3151.3,3150.5,6.34819868]
[1767810014431,0.96154322,3151.3,3150.6,0.99238742]
[1767810014603,0.96154322,3151.4,3150.6,0.99238742]
[1767810015604,0.96154322,3151.4,3151.1,0.002]
[1767810016108,1.79454322,3151.6,3151.1,0.002]
[1767810017641,4.96756372,3151.6,3151.1,0.002]
[1767810018150,1.79454322,3151.6,3151.1,0.002]
[1767810018329,0.49674551,3151.5,3151.1,0.002]
[1767810019021,0.96154322,3151.9,3151.1,0.99438742]
[1767810019349,0.96154322,3152.1,3151.1,0.99438742]
[1767810020230,4.96687747,3152.3,3151.3,0.99238742]
[1767810020560,1.79454322,3152.3,3151.3,0.99238742]
[1767810021251,0.96154322,3152.7,3151.4,0.99238742]
[1767810021454,0.001,3152.8,3151.3,0.832]
[1767810021455,0.001,3152.8,3151.6,0.99238742]
[1767810022149,0.96254322,3152.8,3151.6,0.99238742]
[1767810022376,0.001,3152.8,3151.8,0.99238742]
[1767810022655,0.001,3152.8,3152.0,0.99238742]
[1767810022823,0.95954827,3153.5,3152.2,0.99238742]
[1767810023422,4.1306349,3153.5,3152.2,0.99238742]
[1767810023820,0.95954827,3153.5,3152.2,0.99238742]
[1767810024231,4.13067355,3153.5,3152.2,0.99238742]
[1767810024457,0.96154322,3153.4,3152.4,0.99238742]
[1767810024761,0.96154322,3153.4,3152.5,0.99238742]
[1767810026460,0.96154322,3153.2,3152.1,0.832]
[1767810026660,0.96154322,3153.1,3152.1,4.004482]
[1767810027162,0.96154322,3153.1,3151.7,0.99238742]
[1767810027386,0.96154322,3152.9,3152.1,3.17244284]
[1767810028460,0.96154322,3152.9,3152.0,3.1725602]
[1767810028664,4.13323473,3152.9,3152.0,3.1725602]
[1767810029362,4.13323473,3152.9,3152.0,7.33753645]
[1767810029768,0.96154322,3152.8,3151.7,0.99238742]
[1767810030057,0.96154322,3152.7,3151.9,3.17266044]
[1767810030462,0.96154322,3152.7,3151.9,6.34534992]
[1767810030654,0.96154322,3152.7,3151.9,7.33773734]
[1767810030830,0.73049262,3152.8,3152.0,0.99238742]
[1767810032077,3.9022983,3152.8,3152.0,0.99238742]
[1767810032457,0.73049262,3152.8,3152.1,3.17248818]
[1767810034384,0.73049262,3152.8,3152.1,4.07348949]
[1767810037092,0.96154322,3152.9,3152.1,4.07348949]
[1767810037300,0.96154322,3152.9,3152.2,0.90100131]
[1767810037594,0.97640138,3153.5,3152.3,0.90100131]
[1767810037802,0.97640138,3153.3,3152.3,0.90100131]
[1767810038586,0.97640138,3153.3,3152.2,0.832]
[1767810038789,0.97640138,3153.1,3152.2,1.73300131]
[1767810039159,0.97640138,3153.0,3152.3,3.1722869]
[1767810039992,0.97640138,3153.0,3152.4,0.002]
[1767810041071,3.17158677,3153.0,3152.4,0.002]
[1767810041275,0.97640138,3152.9,3152.4,0.002]
[1767810042970,0.97640138,3152.8,3152.0,0.002]
[1767810043683,0.73194896,3152.9,3152.0,0.002]
[1767810043684,0.97640138,3152.6,3152.0,0.002]
[1767810043993,0.97640138,3152.5,3151.6,3.17499149]
[1767810044194,0.97640138,3152.3,3151.6,3.17499149]
[1767810046490,0.97640138,3152.3,3151.6,0.002]
[1767810046701,0.97640138,3152.2,3151.6,0.002]
[1767810050805,0.97640138,3152.0,3151.3,0.002]
[1767810051098,0.97640138,3151.8,3151.3,0.002]
[1767810052795,3.17289082,3151.7,3151.3,0.002]
[1767810052999,0.97640138,3151.7,3151.3,0.002]
[1767810053371,0.97640138,3151.7,3150.8,0.90300131]
[1767810053372,0.97640138,3151.7,3150.8,0.002]
[1767810053988,0.97640138,3151.7,3150.8,3.17576868]
[1767810054201,0.97640138,3151.7,3150.9,0.90100131]